fUSD/lending_fUSD_20240331
["ID","MTS","AMOUNT","RATE_DAILY","PERIOD"]
[321142954,1711908676690,-500.0,0.00056164,120]
[321142955,1711908676700,-500.0,0.00056164,120]
[321142956,1711908676709,-2816.51,0.00056164,120]
[321142957,1711908676717,-475.1,0.00056164,120]
[321142958,1711908676726,-500.0,0.00056164,120]
[321142959,1711908676736,-206.58233572,0.00056164,120]
[321142960,1711908676745,-500.0,0.00056164,120]
[321142961,1711908676755,-500.0,0.00056164,120]
[321142962,1711908676764,-251.4872035,0.00056164,120]
[321142963,1711908676774,-587.31,0.00056164,120]
[321142964,1711908676783,-574.2,0.00056164,120]
[321142965,1711908676791,-500.0,0.00056164,120]
[321142966,1711908676801,-500.0,0.00056164,120]
[321142967,1711908676811,-2188.08,0.00056164,120]
[321142968,1711908676820,-500.0,0.00056164,120]
[321142969,1711908676829,-500.0,0.00056164,120]
[321142970,1711908676838,-505.55,0.00056164,120]
[321142971,1711908676847,-500.0,0.00056164,120]
[321142972,1711908676857,-819.73,0.00056164,120]
[321142973,1711908676867,-500.0,0.00056164,120]
[321142974,1711908676876,-500.0,0.00056164,120]
[321142975,1711908676885,-500.0,0.00056164,120]
[321142976,1711908676894,-4649.04,0.00056164,120]
[321142977,1711908676903,-369.88557275,0.00056164,120]
[321142978,1711908676912,-500.0,0.00056164,120]
[321142979,1711908676921,-707.12,0.00056164,120]
[321142980,1711908676931,-2267.81,0.00056164,120]
[321142981,1711908676940,-522.38,0.00056164,120]
[321142982,1711908676950,-500.0,0.00056164,120]
[321142983,1711908676959,-5133.4,0.00056164,120]
[321142984,1711908676969,-1480.3,0.00056164,120]
[321142985,1711908676978,-805.22,0.00056164,120]
[321142986,1711908676988,-500.0,0.00056164,120]
[321142987,1711908676997,-500.0,0.00056164,120]
[321142988,1711908677007,-1427.42,0.00056164,120]
[321142989,1711908677017,-2273.08,0.00056164,120]
[321142990,1711908677026,-500.0,0.00056164,120]
[321142991,1711908677036,-6661.02,0.00056164,120]
[321142992,1711908677046,-500.0,0.00056164,120]
[321142993,1711908677056,-4444.01,0.00056164,120]
[321142994,1711908677066,-642.39,0.00056164,120]
[321142995,1711908677075,-300.68005,0.00056164,120]
[321142996,1711908677085,-500.0,0.00056164,120]
[321142997,1711908677095,-500.0,0.00056164,120]
[321142998,1711908677104,-572.95,0.00056164,120]
[321142999,1711908677114,-6431.04,0.00056164,120]
[321143000,1711908677123,-2363.15,0.00056164,120]
[321143001,1711908677133,-500.0,0.00056164,120]
[321143002,1711908677142,-899.44,0.00056164,120]
[321143003,1711908677151,-500.0,0.00056164,120]
[321143004,1711908677161,-500.0,0.00056164,120]
[321143005,1711908677171,-1651.19,0.00056164,120]
[321143006,1711908677182,-512.64,0.00056164,120]
[321143007,1711908677191,-500.0,0.00056164,120]
[321143008,1711908677201,-178.55,0.00056164,120]
[321143009,1711908677211,-500.0,0.00056164,120]
[321143010,1711908677221,-1275.53,0.00056164,120]
[321143011,1711908677231,-4862.95,0.00056164,120]
[321143012,1711908677240,-500.0,0.00056164,120]
[321143013,1711908677252,-1488.24,0.00056164,120]
[321143014,1711908677262,-816.26,0.00056164,120]
[321143015,1711908677272,-602.92,0.00056164,120]
[321143016,1711908677282,-1110.2,0.00056164,120]
[321143017,1711908677291,-669.65,0.00056164,120]
[321143018,1711908677301,-500.0,0.00056164,120]
[321143019,1711908677310,-3231.72,0.00056164,120]
[321143020,1711908677320,-642.72,0.00056164,120]
[321143021,1711908677330,-705.23,0.00056164,120]
[321143022,1711908677339,-713.19,0.00056164,120]
[321143023,1711908677348,-2389.97,0.00056164,120]
[321143024,1711908677358,-476.23,0.00056164,120]
[321143025,1711908677368,-500.0,0.00056164,120]
[321143026,1711908677378,-648.84,0.00056164,120]
[321143027,1711908677390,-500.0,0.00056164,120]
[321143028,1711908677400,-500.0,0.00056164,120]
[321143029,1711908677409,-1994.62,0.00056164,120]
[321143030,1711908677419,-2619.63,0.00056164,120]
[321143031,1711908677429,-500.0,0.00056164,120]
[321143032,1711908677440,-500.0,0.00056164,120]
[321143033,1711908677450,-500.0,0.00056164,120]
[321143034,1711908677459,-500.0,0.00056164,16]
[321143035,1711908677469,-500.0,0.00056164,120]
[321143036,1711908677480,-3992.88,0.00056164,120]
[321143037,1711908677490,-4661.97,0.00056164,120]
[321143038,1711908677499,-1467.45,0.00056164,120]
[321143039,1711908677509,-7813.73,0.00056164,120]
[321143040,1711908677520,-419.26,0.00056164,120]
[321143041,1711908677531,-2947.07,0.00056164,120]
[321143042,1711908677542,-595.08,0.00056164,120]
[321143043,1711908677554,-635.56,0.00056164,120]
[321143044,1711908677563,-500.0,0.00056164,120]
[321143045,1711908677574,-1656.13,0.00056164,120]
[321143046,1711908677583,-500.0,0.00056164,120]
[321143047,1711908677593,-419.07,0.00056164,120]
[321143048,1711908677603,-697.65,0.00056164,120]
[321143049,1711908677613,-500.0,0.00056164,120]
[321143050,1711908677625,-500.0,0.00056164,120]
[321143051,1711908677635,-709.24,0.00056164,120]
[321143052,1711908677644,-500.0,0.00056164,120]
[321143053,1711908677654,-567.42,0.00056164,120]
[321143054,1711908677664,-500.0,0.00056164,120]
[321143055,1711908677674,-500.0,0.00056164,120]
[321143056,1711908677684,-500.0,0.00056164,120]
[321143057,1711908677698,-500.0,0.00056164,120]
[321143058,1711908677707,-729.76,0.00056164,120]
[321143059,1711908677718,-2362.9,0.00056164,120]
[321143060,1711908677729,-500.0,0.00056164,120]
[321143061,1711908677739,-500.0,0.00056164,120]
[321143062,1711908677749,-160.55364453,0.00056171,120]
[321143063,1711908677758,-1011.0,0.000562,120]
[321143064,1711908677769,-500.0,0.00056438,120]
[321143065,1711908677779,-500.0,0.00056438,120]
[321143066,1711908677788,-500.0,0.00056438,120]
[321143067,1711908677798,-500.0,0.00056438,120]
[321143068,1711908677807,-500.0,0.00056438,120]
[321143069,1711908677817,-500.0,0.00056438,120]
[321143070,1711908677826,-500.0,0.00056438,120]
[321143071,1711908677835,-500.0,0.00056438,120]
[321143072,1711908677844,-574.87032653,0.00056438,120]
[321143073,1711908677854,-500.0,0.00056438,120]
[321143074,1711908677864,-500.0,0.00056438,120]
[321143075,1711908677874,-547.51,0.00056438,120]
[321143076,1711908677884,-500.0,0.00056438,120]
[321143077,1711908677893,-500.0,0.00056438,120]
[321143078,1711908677902,-619.15587387,0.00056438,120]
[321143079,1711908677912,-181.8,0.00056438,120]
[321143080,1711908677921,-500.0,0.00056438,120]
[321143081,1711908677931,-500.0,0.00056438,120]
[321143082,1711908677940,-500.0,0.00056438,120]
[321143083,1711908677950,-350.5,0.00056438,120]
[321143084,1711908677959,-500.0,0.00056438,120]
[321143085,1711908677969,-500.0,0.00056438,120]
[321143086,1711908677978,-501.38,0.00056438,120]
[321143087,1711908677987,-500.0,0.00056438,120]
[321143088,1711908677997,-500.0,0.00056438,120]
[321143089,1711908678006,-500.0,0.00056438,120]
[321143090,1711908678016,-500.0,0.00056438,120]
[321143091,1711908678026,-500.0,0.00056438,120]
[321143092,1711908678035,-500.0,0.00056438,120]
[321143093,1711908678045,-500.0,0.00056438,120]
[321143094,1711908678054,-500.0,0.00056438,120]
[321143095,1711908678064,-500.0,0.00056438,120]
[321143096,1711908678073,-500.0,0.00056438,120]
[321143097,1711908678082,-500.0,0.00056438,120]
[321143098,1711908678093,-500.0,0.00056438,120]
[321143099,1711908678102,-500.0,0.00056438,120]
[321143100,1711908678111,-500.0,0.00056438,120]
[321143101,1711908678121,-500.0,0.00056438,120]
[321143102,1711908678130,-500.0,0.00056438,120]
[321143103,1711908678141,-500.0,0.00056438,120]
[321143104,1711908678151,-518.63,0.00056438,120]
[321143105,1711908678160,-500.0,0.00056438,120]
[321143106,1711908678170,-500.0,0.00056438,120]
[321143107,1711908678180,-500.0,0.00056438,120]
[321143108,1711908678189,-500.0,0.00056438,120]
[321143109,1711908678198,-500.0,0.00056438,120]
[321143110,1711908678208,-500.0,0.00056438,120]
[321143111,1711908678217,-500.0,0.00056438,120]
[321143112,1711908678226,-500.0,0.00056438,120]
[321143113,1711908678235,-500.0,0.00056438,120]
[321143114,1711908678245,-664.54,0.00056438,120]
[321143115,1711908678255,-500.0,0.00056438,120]
[321143116,1711908678265,-500.0,0.00056438,120]
[321143117,1711908678274,-500.0,0.00056438,120]
[321143118,1711908678283,-1004.03,0.00056438,120]
[321143119,1711908678293,-500.0,0.00056438,120]
[321143120,1711908678302,-150.0,0.00056438,120]
[321143121,1711908678312,-235.63,0.00056438,120]
[321143122,1711908678321,-500.0,0.00056438,120]
[321143123,1711908678330,-500.0,0.00056438,120]
[321143124,1711908678339,-500.0,0.00056438,120]
[321143125,1711908678348,-804.28,0.00056438,120]
[321143126,1711908678358,-500.0,0.00056438,120]
[321143127,1711908678367,-500.0,0.00056438,120]
[321143128,1711908678376,-500.0,0.00056438,120]
[321143129,1711908678385,-914.67,0.00056438,120]
[321143130,1711908678394,-500.0,0.00056438,120]
[321143131,1711908678403,-500.0,0.00056438,120]
[321143132,1711908678412,-510.44,0.00056438,120]
[321143133,1711908678422,-634.82175384,0.00056438,120]
[321143134,1711908678432,-1062.57,0.00056438,120]
[321143135,1711908678441,-500.0,0.00056438,120]
[321143136,1711908678450,-500.0,0.00056438,120]
[321143137,1711908678460,-500.0,0.00056438,120]
[321143138,1711908678469,-500.0,0.00056438,120]
[321143139,1711908678479,-500.0,0.00056438,120]
[321143140,1711908678488,-500.0,0.00056438,120]
[321143141,1711908678498,-384.98057269,0.00056438,120]
[321143142,1711908678507,-500.0,0.00056438,120]
[321143143,1711908678516,-500.0,0.00056438,2]
[321143144,1711908678526,-500.0,0.00056438,120]
[321143145,1711908678536,-500.0,0.00056438,120]
[321143146,1711908678545,-217.48,0.00056438,120]
[321143147,1711908678554,-980.98,0.00056438,120]
[321143148,1711908678564,-231.46037652,0.00056438,120]
[321143149,1711908678573,-403.67,0.00056438,120]
[321143150,1711908678582,-500.0,0.00056438,120]
[321143151,1711908678591,-500.0,0.00056438,120]
[321143152,1711908678601,-296.0,0.00056438,120]
[321143153,1711908678610,-500.0,0.00056438,120]
[321143154,1711908678619,-371.68,0.00056438,120]
[321143155,1711908678629,-500.0,0.00056438,120]
[321143156,1711908678638,-185.64,0.00056438,120]
[321143157,1711908678647,-500.0,0.00056438,120]
[321143158,1711908678657,-529.82,0.00056438,120]
[321143159,1711908678667,-500.0,0.00056438,120]
[321143160,1711908678676,-500.0,0.00056438,120]
[321143161,1711908678687,-691.41,0.00056438,120]
[321143162,1711908678700,-500.0,0.00056438,120]
[321143163,1711908678710,-500.0,0.00056438,120]
[321143164,1711908678719,-500.0,0.00056438,120]
[321143165,1711908678729,-500.0,0.00056438,120]
[321143166,1711908678739,-500.0,0.00056438,120]
[321143167,1711908678748,-500.0,0.00056438,120]
[321143168,1711908678758,-453.74,0.00056438,120]
[321143169,1711908678768,-500.0,0.00056438,120]
[321143170,1711908678778,-500.0,0.00056438,120]
[321143171,1711908678788,-500.0,0.00056438,120]
[321143172,1711908678797,-500.0,0.00056438,120]
[321143173,1711908678807,-500.0,0.00056438,120]
[321143174,1711908678816,-535.03,0.00056438,120]
[321143175,1711908678826,-500.0,0.00056438,120]
[321143176,1711908678835,-295.96,0.00056438,120]
[321143177,1711908678845,-500.0,0.00056438,120]
[321143178,1711908678856,-834.12,0.00056438,120]
[321143179,1711908678865,-177.46,0.00056438,120]
[321143180,1711908678875,-500.0,0.00056438,120]
[321143181,1711908678884,-500.0,0.00056438,120]
[321143182,1711908678893,-500.0,0.00056438,120]
[321143183,1711908678903,-500.0,0.00056438,120]
[321143184,1711908678913,-500.0,0.00056438,120]
[321143185,1711908678924,-597.15,0.00056438,120]
[321143186,1711908678934,-630.81,0.00056438,120]
[321143187,1711908678943,-500.0,0.00056438,120]
[321143188,1711908678952,-400.58,0.00056438,120]
[321143189,1711908678962,-2161.52,0.00056438,120]
[321143190,1711908678972,-523.05,0.00056438,120]
[321143191,1711908678981,-214.24,0.00056438,120]
[321143192,1711908678991,-500.0,0.00056438,120]
[321143193,1711908679001,-500.0,0.00056438,120]
[321143194,1711908679011,-851.6,0.00056438,120]
[321143195,1711908679021,-449.99,0.00056438,120]
[321143196,1711908679030,-500.0,0.00056438,120]
[321143197,1711908679040,-500.0,0.00056438,120]
[321143198,1711908679050,-500.0,0.00056438,120]
[321143199,1711908679059,-500.0,0.00056438,120]
[321143200,1711908679070,-1120.95,0.00056438,120]
[321143201,1711908679081,-500.0,0.00056438,120]
[321143202,1711908679091,-500.0,0.00056438,120]
[321143203,1711908679288,-500.0,0.00056438,50]
[321143204,1711908679297,-500.0,0.00056438,120]
[321143205,1711908679307,-500.0,0.00056438,120]
[321143206,1711908679316,-13825.51,0.00056438,120]
[321143207,1711908679325,-500.0,0.00056438,120]
[321143208,1711908679334,-4835.83,0.00056438,120]
[321143209,1711908679343,-500.0,0.00056438,120]
[321143210,1711908679352,-500.0,0.00056438,120]
[321143211,1711908679361,-500.0,0.00056438,120]
[321143212,1711908679370,-645.15,0.00056438,120]
[321143213,1711908679380,-547.4,0.00056438,120]
[321143214,1711908679389,-500.0,0.00056438,120]
[321143215,1711908679398,-500.0,0.00056438,120]
[321143216,1711908679406,-500.0,0.00056438,120]
[321143217,1711908679416,-1596.31,0.00056438,120]
[321143218,1711908679425,-500.0,0.00056438,120]
[321143219,1711908679434,-810.88,0.00056438,120]
[321143220,1711908679443,-10458.37,0.00056438,120]
[321143221,1711908679452,-568.01123762,0.00056438,120]
[321143222,1711908679461,-500.0,0.00056438,120]
[321143223,1711908679471,-1071.85,0.00056438,120]
[321143224,1711908679479,-520.56,0.00056438,120]
[321143225,1711908679489,-500.0,0.00056438,120]
[321143226,1711908679498,-500.0,0.00056438,120]
[321143227,1711908679507,-500.0,0.00056438,120]
[321143228,1711908679516,-500.0,0.00056438,120]
[321143229,1711908679526,-500.0,0.00056438,120]
[321143230,1711908679535,-515.51,0.00056438,120]
[321143231,1711908679545,-500.0,0.00056438,120]
[321143232,1711908679554,-500.0,0.00056438,120]
[321143233,1711908679563,-500.0,0.00056438,120]
[321143234,1711908679573,-500.0,0.00056438,120]
[321143235,1711908679582,-956.86,0.00056438,120]
[321143236,1711908679591,-500.0,0.00056438,120]
[321143237,1711908679600,-500.0,0.00056438,120]
[321143238,1711908679610,-500.0,0.00056438,120]
[321143239,1711908679619,-500.0,0.00056438,120]
[321143240,1711908679629,-1008.24,0.00056438,120]
[321143241,1711908679639,-500.0,0.00056438,120]
[321143242,1711908679649,-514.26,0.00056438,120]
[321143243,1711908679659,-500.0,0.00056438,120]
[321143244,1711908679668,-500.0,0.00056438,120]
[321143245,1711908679678,-500.0,0.00056438,120]
[321143246,1711908679690,-500.0,0.00056438,120]
[321143247,1711908679701,-1713.58,0.00056438,21]
[321143248,1711908679711,-500.0,0.00056438,120]
[321143249,1711908679720,-500.0,0.00056438,120]
[321143250,1711908679730,-761.78,0.00056438,120]
[321143251,1711908679739,-647.03,0.00056438,120]
[321143252,1711908679749,-1017.54,0.00056438,120]
[321143253,1711908679758,-1083.62,0.00056438,120]
[321143254,1711908679768,-500.0,0.00056438,120]
[321143255,1711908679777,-1151.56,0.00056438,120]
[321143256,1711908679786,-500.0,0.00056438,120]
[321143257,1711908679795,-705.26,0.00056438,120]
[321143258,1711908679804,-193.5,0.00056438,120]
[321143259,1711908679814,-1812.14,0.00056438,120]
[321143260,1711908679826,-500.0,0.00056438,120]
[321143261,1711908679835,-170.14,0.00056438,120]
[321143262,1711908679846,-500.0,0.00056438,120]
[321143263,1711908679857,-500.0,0.00056438,120]
[321143264,1711908679867,-3632.67,0.00056438,120]
[321143265,1711908679876,-777.77,0.00056438,120]
[321143266,1711908679885,-500.0,0.00056438,120]
[321143267,1711908679894,-2065.04,0.00056438,120]
[321143268,1711908679903,-500.0,0.00056438,120]
[321143269,1711908679913,-500.0,0.00056438,120]
[321143270,1711908679922,-500.0,0.00056438,120]
[321143271,1711908679931,-500.0,0.00056438,120]
[321143272,1711908679941,-500.0,0.00056438,120]
[321143273,1711908679950,-1086.78,0.00056438,120]
[321143274,1711908679960,-417.66,0.00056438,120]
[321143275,1711908679969,-1708.94,0.00056438,120]
[321143276,1711908679979,-500.0,0.00056438,120]
[321143277,1711908679988,-1274.25,0.00056438,120]
[321143278,1711908679998,-10405.37,0.00056438,120]
[321143279,1711908680007,-500.0,0.00056438,120]
[321143280,1711908680017,-500.0,0.00056438,120]
[321143281,1711908680026,-2816.51,0.00056438,120]
[321143282,1711908680035,-500.0,0.00056438,120]
[321143283,1711908680045,-500.0,0.00056438,120]
[321143284,1711908680055,-500.0,0.00056438,120]
[321143285,1711908680064,-587.31,0.00056438,120]
[321143286,1711908680074,-574.2,0.00056438,120]
[321143287,1711908680084,-500.0,0.00056438,120]
[321143288,1711908680094,-500.0,0.00056438,120]
[321143289,1711908680104,-2188.08,0.00056438,120]
[321143290,1711908680114,-500.0,0.00056438,120]
[321143291,1711908680123,-500.0,0.00056438,120]
[321143292,1711908680133,-505.55,0.00056438,120]
[321143293,1711908680143,-500.0,0.00056438,120]
[321143294,1711908680152,-819.73,0.00056438,120]
[321143295,1711908680162,-500.0,0.00056438,120]
[321143296,1711908680171,-500.0,0.00056438,120]
[321143297,1711908680180,-500.0,0.00056438,120]
[321143298,1711908680190,-4649.04,0.00056438,120]
[321143299,1711908680200,-500.0,0.00056438,120]
[321143300,1711908680209,-707.12,0.00056438,120]
[321143301,1711908680218,-2267.81,0.00056438,120]
[321143302,1711908680228,-500.0,0.00056438,120]
[321143303,1711908680238,-5133.4,0.00056438,120]
[321143304,1711908680247,-1480.3,0.00056438,120]
[321143305,1711908680258,-805.22,0.00056438,120]
[321143306,1711908680268,-500.0,0.00056438,120]
[321143307,1711908680278,-500.0,0.00056438,120]
[321143308,1711908680287,-1427.42,0.00056438,120]
[321143309,1711908680297,-2273.08,0.00056438,120]
[321143310,1711908680306,-500.0,0.00056438,120]
[321143311,1711908680315,-6661.02,0.00056438,120]
[321143312,1711908680325,-500.0,0.00056438,120]
[321143313,1711908680335,-4444.01,0.00056438,120]
[321143314,1711908680344,-642.39,0.00056438,120]
[321143315,1711908680354,-500.0,0.00056438,120]
[321143316,1711908680363,-500.0,0.00056438,120]
[321143317,1711908680373,-572.95,0.00056438,120]
[321143318,1711908680382,-6431.04,0.00056438,120]
[321143319,1711908680392,-2363.15,0.00056438,120]
[321143320,1711908680401,-500.0,0.00056438,120]
[321143321,1711908680411,-899.44,0.00056438,120]
[321143322,1711908680421,-500.0,0.00056438,120]
[321143323,1711908680430,-500.0,0.00056438,120]
[321143324,1711908680440,-1651.19,0.00056438,120]
[321143325,1711908680449,-512.64,0.00056438,120]
[321143326,1711908680459,-500.0,0.00056438,120]
[321143327,1711908680468,-500.0,0.00056438,120]
[321143328,1711908680478,-1275.53,0.00056438,120]
[321143329,1711908680487,-4862.95,0.00056438,120]
[321143330,1711908680496,-500.0,0.00056438,120]
[321143331,1711908680506,-1488.24,0.00056438,120]
[321143332,1711908680515,-816.26,0.00056438,120]
[321143333,1711908680525,-1110.2,0.00056438,120]
[321143334,1711908680534,-669.65,0.00056438,120]
[321143335,1711908680543,-3231.72,0.00056438,120]
[321143336,1711908680553,-500.0,0.00056438,120]
[321143337,1711908680562,-186.362632,0.00056438,120]
[321143338,1711908680572,-642.72,0.00056438,120]
[321143339,1711908680581,-186.362632,0.00056438,120]
[321143340,1711908680590,-705.23,0.00056438,120]
[321143341,1711908680600,-713.19,0.00056438,120]
[321143342,1711908680610,-2389.97,0.00056438,120]
[321143343,1711908680619,-500.0,0.00056438,120]
[321143344,1711908680628,-648.84,0.00056438,120]
[321143345,1711908680637,-218.43,0.00056438,120]
[321143346,1711908680646,-500.0,0.00056438,120]
[321143347,1711908680655,-1994.62,0.00056438,120]
[321143348,1711908680665,-2619.63,0.00056438,120]
[321143349,1711908680674,-500.0,0.00056438,120]
[321143350,1711908680684,-500.0,0.00056438,120]
[321143351,1711908680695,-500.0,0.00056438,120]
[321143352,1711908680705,-500.0,0.00056438,16]
[321143353,1711908680714,-500.0,0.00056438,120]
[321143354,1711908680724,-4661.97,0.00056438,120]
[321143355,1711908680734,-3992.88,0.00056438,120]
[321143356,1711908680743,-1467.45,0.00056438,120]
[321143357,1711908680753,-7813.73,0.00056438,120]
[321143358,1711908680763,-2947.07,0.00056438,120]
[321143359,1711908680773,-595.08,0.00056438,120]
[321143360,1711908680783,-635.56,0.00056438,120]
[321143361,1711908680792,-500.0,0.00056438,120]
[321143362,1711908680802,-1656.13,0.00056438,120]
[321143363,1711908680811,-500.0,0.00056438,120]
[321143364,1711908680821,-697.65,0.00056438,120]
[321143365,1711908680831,-500.0,0.00056438,120]
[321143366,1711908680840,-500.0,0.00056438,120]
[321143367,1711908680850,-709.24,0.00056438,120]
[321143368,1711908680860,-500.0,0.00056438,120]
[321143369,1711908680869,-567.42,0.00056438,120]
[321143370,1711908680879,-500.0,0.00056438,120]
[321143371,1711908680888,-500.0,0.00056438,120]
[321143372,1711908680898,-497.74,0.00056438,120]
[321143373,1711908680907,-500.0,0.00056438,120]
[321143374,1711908680916,-729.76,0.00056438,120]
[321143375,1711908680926,-2362.9,0.00056438,120]
[321143376,1711908680936,-500.0,0.00056438,120]
[321143377,1711908680945,-500.0,0.00056438,120]
[321143378,1711908680955,-200.0,0.00056438,120]
[321143379,1711908680964,-292.52630791,0.00056514,34]
[321143380,1711908680974,-150.5,0.00056681,15]
[321143381,1711908680983,-150.5,0.00056691,15]
[321143382,1711908680992,-150.5,0.00056701,15]
[321143383,1711908681002,-151.0,0.00056711,120]
[321143384,1711908681011,-500.0,0.00056712,120]
[321143385,1711908681020,-500.0,0.00056712,120]
[321143386,1711908681029,-500.0,0.00056712,120]
[321143387,1711908681039,-500.0,0.00056712,120]
[321143388,1711908681048,-500.0,0.00056712,120]
[321143389,1711908681057,-500.0,0.00056712,120]
[321143390,1711908681067,-500.0,0.00056712,120]
[321143391,1711908681076,-500.0,0.00056712,120]
[321143392,1711908681085,-500.0,0.00056712,120]
[321143393,1711908681094,-500.0,0.00056712,120]
[321143394,1711908681104,-346.78,0.00056712,120]
[321143395,1711908681114,-500.0,0.00056712,120]
[321143396,1711908681123,-500.0,0.00056712,120]
[321143397,1711908681132,-214.95184231,0.00056712,120]
[321143398,1711908681142,-500.0,0.00056712,120]
[321143399,1711908681151,-332.8,0.00056712,120]
[321143400,1711908681160,-500.0,0.00056712,120]
[321143401,1711908681169,-500.0,0.00056712,120]
[321143402,1711908681180,-500.0,0.00056712,120]
[321143403,1711908681189,-500.0,0.00056712,120]
[321143404,1711908681198,-500.0,0.00056712,120]
[321143405,1711908681208,-500.0,0.00056712,120]
[321143406,1711908681217,-500.0,0.00056712,120]
[321143407,1711908681226,-342.5,0.00056712,120]
[321143408,1711908681236,-500.0,0.00056712,120]
[321143409,1711908681245,-500.0,0.00056712,120]
[321143410,1711908681254,-500.0,0.00056712,120]
[321143411,1711908681264,-500.0,0.00056712,120]
[321143412,1711908681273,-500.0,0.00056712,120]
[321143413,1711908681282,-500.0,0.00056712,120]
[321143414,1711908681291,-500.0,0.00056712,120]
[321143415,1711908681301,-500.0,0.00056712,120]
[321143416,1711908681310,-500.0,0.00056712,120]
[321143417,1711908681320,-565.66,0.00056712,120]
[321143418,1711908681328,-500.0,0.00056712,120]
[321143419,1711908681337,-182.19,0.00056712,120]
[321143420,1711908681346,-500.0,0.00056712,120]
[321143421,1711908681356,-500.0,0.00056712,120]
[321143422,1711908681365,-500.0,0.00056712,120]
[321143423,1711908681374,-500.0,0.00056712,120]
[321143424,1711908681384,-664.54,0.00056712,120]
[321143425,1711908681393,-500.0,0.00056712,120]
[321143426,1711908681402,-500.0,0.00056712,120]
[321143427,1711908681411,-500.0,0.00056712,120]
[321143428,1711908681420,-1004.03,0.00056712,120]
[321143429,1711908681429,-500.0,0.00056712,120]
[321143430,1711908681438,-150.0,0.00056712,120]
[321143431,1711908681447,-500.0,0.00056712,120]
[321143432,1711908681456,-561.72495094,0.00056712,120]
[321143433,1711908681465,-500.0,0.00056712,120]
[321143434,1711908681474,-804.28,0.00056712,120]
[321143435,1711908681483,-377.47,0.00056712,120]
[321143436,1711908681493,-500.0,0.00056712,120]
[321143437,1711908681502,-500.0,0.00056712,120]
[321143438,1711908681511,-914.67,0.00056712,120]
[321143439,1711908681574,-500.0,0.00056712,120]
[321143440,1711908681584,-500.0,0.00056712,120]
[321143441,1711908681592,-510.44,0.00056712,120]
[321143442,1711908681602,-1062.57,0.00056712,120]
[321143443,1711908681611,-500.0,0.00056712,120]
[321143444,1711908681620,-297.82,0.00056712,120]
[321143445,1711908681629,-500.0,0.00056712,120]
[321143446,1711908681638,-500.0,0.00056712,120]
[321143447,1711908681647,-500.0,0.00056712,120]
[321143448,1711908681656,-500.0,0.00056712,120]
[321143449,1711908681665,-500.0,0.00056712,120]
[321143450,1711908681674,-500.0,0.00056712,2]
[321143451,1711908681683,-500.0,0.00056712,120]
[321143452,1711908681694,-500.0,0.00056712,120]
[321143453,1711908681703,-980.98,0.00056712,120]